Cogmind - Beta 12 @@@ ROGUE MODE // 2023.04.26 @ 01:50:28 // Winter2019/RPGLIKE Player: Skum Result: Destroyed by Y-45 Defender with Heavy Assault Rifle Performance ------------- Evolutions (2) 1000 Regions Visited (5) 1000 Robots Destroyed (48) 240 Value Destroyed (1757) 1757 Prototype IDs (9) 180 Alien Tech Used (0) 0 Bonus (535) 535 TOTAL SCORE: 4712 Bonus ------- Follower Combat Kills 235 Aligned with FarCom 300 Cogmind --------- Core Integrity 0/650 Matter 300/300 Energy 275/275 System Corruption 0% Temperature Cool (9) Movement Walking (90) Location -8/Materials Parts ------- > --- POWER (1) -------- Deuterium Engine > --- PROPULSION (2) --- Potential Leg Potential Leg > --- UTILITY (4) ------ Improved Signal Interpreter Improved Signal Interpreter Improved Melee Analysis Suite Improved Melee Analysis Suite > --- WEAPON (1) ------- Makeshift Hammer > --- INVENTORY (1) ---- Heavy Mace Peak State ------------ > --- POWER ------------ Light Nuclear Core > --- PROPULSION ------- Potential Leg Potential Leg > --- UTILITY ---------- Improved Melee Analysis Suite Improved Melee Analysis Suite Improved Melee Analysis Suite Hardened Light Armor Plating > --- WEAPON ----------- Makeshift Hammer > --- INVENTORY -------- (None) [Rating: 41] Favorites ----------- Power Light Nuclear Core Engine Ion Engine Power Core Light Nuclear Core Propulsion Potential Leg Leg Potential Leg Utility Improved Melee Analysis Suite Device Heat Sink Processor Improved Melee Analysis Suite Protection Hardened Light Armor Plating Weapon Makeshift Hammer Energy Gun Small Laser Impact Weapon Makeshift Hammer Build | -11 -10 -10 -10 -9 -8 ------- Run | Jun Mat Min Exi Min Mat Slots Evolved 4 | . . . 1 . 3 Power . | . . . . . . Propulsion 1 | . . . 1 . . Utility 3 | . . . . . 3 Weapon . | . . . . . . Parts Attached 26 | 3 5 3 2 2 11 Power 6 | 1 1 1 . 1 2 Engine 4 | 1 1 1 . . 1 Core 2 | . . . . 1 1 Reactor . | . . . . . . Propulsion 5 | 1 1 . 2 . 1 Treads . | . . . . . . Leg 5 | 1 1 . 2 . 1 Wheel . | . . . . . . Hover . | . . . . . . Flight . | . . . . . . Utility 12 | . 2 1 . 1 8 Device 2 | . 1 1 . . . Storage . | . . . . . . Processor 8 | . 1 . . . 7 Hackware . | . . . . . . Protection 2 | . . . . 1 1 Artifact . | . . . . . . Weapon 3 | 1 1 1 . . . Energy Gun 1 | 1 . . . . . Energy Cannon . | . . . . . . Ballistic Gun . | . . . . . . Ballistic Cannon . | . . . . . . Launcher . | . . . . . . Special Weapon . | . . . . . . Impact Weapon 2 | . 1 1 . . . Slashing Weapon . | . . . . . . Piercing Weapon . | . . . . . . Special Melee Weapon . | . . . . . . Unidentified Prototypes 2 | . . 1 1 . . Parts Lost 2 | . . . . . 2 Power . | . . . . . . Propulsion . | . . . . . . Utility 2 | . . . . . 2 Weapon . | . . . . . . Highest Loss Streak 2 | . . . . . 2 To Critical Strikes . | . . . . . . Average Slot Usage (%) 88 | . 87 75 76 81 97 Engine 12 | . 25 24 23 6 . Core 8 | . . . . 13 14 Leg 29 | . 25 25 28 40 31 Device 2 | . 10 . . . . Processor 9 | . 1 . . . 20 Protection 6 | . . . . 1 13 Energy Gun 2 | . 14 . . . . Impact Weapon 17 | . 10 25 23 20 15 Naked Turns . | . . . . . . Heaviest Build 13 | 4 7 8 8 13 13 Greatest Support 65 | 10 10 10 65 65 65 Greatest Overweight (x) 1 | 1 . . . . . Average Overweight (x) . | . . . . . . Largest Inventory Capacity 1 | . 1 1 1 1 1 Average Capacity . | . . 1 1 1 1 Most Carried 1 | . 1 1 1 1 1 Average Carried . | . . 1 . 1 . Final Capacity 1 | . 1 1 1 1 1 Final Carried 1 | . 1 1 1 1 1 Class Distribution -------------------- 100% | Hacker-Mutant Dominant Class ---------------- Hacker-Mutant | -10/Materials Hacker-Mutant | -10/Mines Hacker-Mutant | -10/Exiles Hacker-Mutant | -9/Mines Hacker-Mutant | -8/Materials Resources | -11 -10 -10 -10 -9 -8 ----------- Run | Jun Mat Min Exi Min Mat Matter Collected 494 | 230 59 30 . 65 110 Remotely . | . . . . . . Salvage Created 1499 | . 229 34 . 162 1074 Parts 40 | . 14 . . 4 22 Haulers Intercepted . | . . . . . . Recyclers Shooed . | . . . . . . Parts Field Recycled . | . . . . . . Retrieved Matter . | . . . . . . Parts Self-Destructed . | . . . . . . Prevented . | . . . . . . Kills | -11 -10 -10 -10 -9 -8 ------- Run | Jun Mat Min Exi Min Mat Combat Hostiles Destroyed 37 | . 9 . . 2 26 Melee 16 | . . . . 1 15 Guns 9 | . 9 . . . . Classes Destroyed 9 | . 3 1 . 2 3 Builder 1 | . . . . 1 . Tunneler 1 | . . 1 . . . Recycler 1 | . . . . 1 . Watcher 8 | . 3 . . . 5 Swarmer 7 | . 3 . . 1 3 Grunt 23 | . 6 . . 1 16 Sentry 5 | . . . . . 5 Hunter 1 | . . . . . 1 Heavy 1 | . . . . . 1 Best Kill Streak 7 | . 3 1 . 1 7 Combat Bots Only 7 | . 3 . . 1 7 Max Kills in Single Turn 1 | . 1 1 . 1 1 Gunslinging . | . . . . . . Exploded . | . . . . . . Melee 1 | . . . . 1 1 Uniques/NPCs Destroyed . | . . . . . . Combat | -11 -10 -10 -10 -9 -8 -------- Run | Jun Mat Min Exi Min Mat Damage Taken 2672 | . 733 . . 49 1890 Core 2005 | . 622 . . 41 1342 Absorbed by Shields . | . . . . . . Redirected to Core 1344 | . 350 . . 24 970 Regen/Repaired (Parts) 116 | . . . . . 116 Core Remaining (%) 100 | 100 . . . 100 . Volleys Fired 68 | . 68 . . . . Largest 1 | . 1 . . . . Hottest 40 | . 40 . . . . Shots Fired 68 | . 68 . . . . Gun 68 | . 68 . . . . Cannon . | . . . . . . Launcher . | . . . . . . Special . | . . . . . . Kinetic . | . . . . . . Thermal 68 | . 68 . . . . Explosive . | . . . . . . Electromagnetic . | . . . . . . Robot Hit Streak 7 | . 7 . . . . Robot Miss Streak 7 | . 7 . . . . Penetration Max . | . . . . . . Secondary Targets . | . . . . . . Shots Hit Robots 138 | . 49 1 . 7 81 Core Hits 27 | . 17 . . 1 9 Critical Kills . | . . . . . . Critical Parts Destroyed 14 | . 1 . . 2 11 Critical Strikes 15 | . 1 . . 2 12 Smash 15 | . 1 . . 2 12 Melee Attacks 141 | . 8 5 . 18 110 Impact 141 | . 8 5 . 18 110 Slashing . | . . . . . . Piercing . | . . . . . . Sneak Attacks 4 | . . 1 . 2 1 Combat Hostiles 1 | . . . . . 1 Follow-up Attacks . | . . . . . . Damage Inflicted 4701 | . 632 62 . 406 3601 Guns 514 | . 514 . . . . Cannons . | . . . . . . Explosions . | . . . . . . Melee 4187 | . 118 62 . 406 3601 Ramming . | . . . . . . Kinetic . | . . . . . . Thermal 514 | . 514 . . . . Explosive . | . . . . . . Electromagnetic . | . . . . . . Impact 4187 | . 118 62 . 406 3601 Slashing . | . . . . . . Piercing . | . . . . . . Highest Corruption 1 | . 1 1 1 1 . Average Corruption 1 | . 1 1 1 1 . Corruption Purged . | . . . . . . Corruption Blocked . | . . . . . . Effects 17 | . 1 4 6 6 . Message Errors 5 | . . 1 3 1 . Matter Fused 5 | . 1 . 3 1 . Heat Flow Errors 3 | . . 1 . 2 . Energy Discharges 1 | . . 1 . . . Data Loss (minor) 2 | . . 1 . 1 . Data Loss (major) 1 | . . . . 1 . Overload Shots . | . . . . . . Overflow Damage 1247 | . 48 32 . 190 977 Projectiles . | . . . . . . Explosions . | . . . . . . Melee 1247 | . 48 32 . 190 977 Knockbacks 14 | . . 2 . 1 11 Impact 12 | . . 1 . 1 10 Kinetic . | . . . . . . Secondary 2 | . . 1 . . 1 Self-Inflicted Damage . | . . . . . . Shots . | . . . . . . Rammed . | . . . . . . Targets Rammed . | . . . . . . Kicked . | . . . . . . Crushed . | . . . . . . Highest Temperature 198 | . 198 186 . 173 46 Average Temperature 78 | . 102 102 . 79 15 Received Heat Transfer 1035 | . 360 . . 18 657 Siege Activations . | . . . . . . Robots Corrupted . | . . . . . . Combat Hostiles . | . . . . . . Parts Fried 44 | . 6 3 . 5 30 Impact Corruptions 51 | . 5 2 . 7 37 Robots Melted . | . . . . . . Combat Hostiles . | . . . . . . Parts Melted 3 | . 3 . . . . Heat Transferred 1125 | . 1125 . . . . Parts Sabotaged . | . . . . . . Parts Stolen . | . . . . . . Parts Stripped . | . . . . . . Power Chain Reactions . | . . . . . . Missiles Intercepted . | . . . . . . Alert | -11 -10 -10 -10 -9 -8 ------- Run | Jun Mat Min Exi Min Mat Peak Influence 351 | . 173 107 . 335 351 Initial 58 | . . 40 . . 58 Average 97 | . 66 56 . 125 118 Maximum Alert Level 1 | . . . . 1 1 Low Security (%) 89 | 100 100 100 . 81 83 Level 1 10 | . . . . 18 16 Level 2 . | . . . . . . Level 3 . | . . . . . . Level 4 . | . . . . . . Level 5 . | . . . . . . High Security . | . . . . . . Max Security . | . . . . . . Squads Dispatched 7 | . 3 . . . 4 Investigation 2 | . 1 . . . 1 Extermination . | . . . . . . Reinforcement 5 | . 2 . . . 3 Assault . | . . . . . . Garrison . | . . . . . . Intercept . | . . . . . . Searches Triggered . | . . . . . . Construction Impeded . | . . . . . . Haulers Reinforced . | . . . . . . Active Scanning Responses . | . . . . . . Cargo Convoy Interrupts . | . . . . . . Stealth | -11 -10 -10 -10 -9 -8 --------- Run | Jun Mat Min Exi Min Mat Distress Signals 4 | . . . . . 4 Communications Jammed . | . . . . . . Distress Signals . | . . . . . . Times Spotted 72 | . 22 . . 7 43 Peak Tracking Total 5 | . 3 . . 3 5 Tactical Retreats 8 | . 2 . . 1 5 Traps | -11 -10 -10 -10 -9 -8 ------- Run | Jun Mat Min Exi Min Mat Traps Triggered 4 | . 2 . . . 2 Indirectly . | . . . . . . Trap Hack Attempts . | . . . . . . Triggered . | . . . . . . Disarmed . | . . . . . . Reprogrammed . | . . . . . . Reused . | . . . . . . Traps Extracted . | . . . . . . Installed . | . . . . . . Triggered . | . . . . . . Machines | -11 -10 -10 -10 -9 -8 ---------- Run | Jun Mat Min Exi Min Mat Machines Disabled 12 | . . 4 . 8 . Max in Single Turn 1 | . . 1 . 1 . Machines Repaired . | . . . . . . Machines Sabotaged . | . . . . . . Overloaded Fab Kills . | . . . . . . Hacking | -11 -10 -10 -10 -9 -8 --------- Run | Jun Mat Min Exi Min Mat Machines Accessed 21 | . 6 . 4 . 11 Terminals 13 | . 5 . . . 8 Fabricators . | . . . . . . Repair Stations 1 | . . . . . 1 Recycling Units 1 | . 1 . . . . Scanalyzers 1 | . . . . . 1 Garrison Access 1 | . . . . . 1 Total Hacks 165 | . 47 . 49 . 69 Successful 143 | . 34 . 49 . 60 Failed 21 | . 12 . . . 9 Catastrophic . | . . . . . . Database Lockouts 1 | . 1 . . . . Manual 57 | . 23 . 2 . 32 Terminals 93 | . 42 . . . 51 Fabricators . | . . . . . . Repair Stations 4 | . . . . . 4 Recycling Units 5 | . 5 . . . . Scanalyzers 12 | . . . . . 12 Garrison Access 2 | . . . . . 2 Terminal Hacks 111 | . 28 . 49 . 34 Record 65 | . 9 . 49 . 7 Robot Analysis 9 | . 4 . . . 5 Prototype ID Bank 3 | . 2 . . . 1 Level Access Points 2 | . 1 . . . 1 Branch Access Points 2 | . 1 . . . 1 Emergency Access Points 1 | . . . . . 1 Terminal Index 1 | . 1 . . . . Scanalyzer Index 1 | . 1 . . . . Alert Level 8 | . 3 . . . 5 Unreport Threat 2 | . . . . . 2 Locate Traps 3 | . 1 . . . 2 Dispatch Records 3 | . 1 . . . 2 Surveillance Status 2 | . . . . . 2 Transport Status 1 | . 1 . . . . Investigation Status 1 | . . . . . 1 Assault Status 1 | . 1 . . . . Recall Investigation 2 | . 1 . . . 1 Recall Reinforcements 1 | . . . . . 1 Registered Components 1 | . . . . . 1 Registered Prototypes 1 | . 1 . . . . Patrol Navigation 1 | . . . . . 1 Fabricator Hacks . | . . . . . . Repair Station Hacks 4 | . . . . . 4 Scan Component 2 | . . . . . 2 Repair 2 | . . . . . 2 Recycling Unit Hacks 5 | . 5 . . . . Recycle Component 3 | . 3 . . . . Process 1 | . 1 . . . . Report Inventory 1 | . 1 . . . . Scanalyzer 12 | . . . . . 12 Insert Component 6 | . . . . . 6 Analyze 6 | . . . . . 6 Garrison Access Hacks 2 | . . . . . 2 Unlock Access 1 | . . . . . 1 Coupler Status 1 | . . . . . 1 Unauthorized Hacks 9 | . 1 . . . 8 Terminals 9 | . 1 . . . 8 Botnet 9 | . 1 . . . 8 Fabricators . | . . . . . . Repair Stations . | . . . . . . Recycling Units . | . . . . . . Scanalyzers . | . . . . . . Garrison Access . | . . . . . . Data Cores Recovered . | . . . . . . Used . | . . . . . . Hacking Detections 15 | . 6 . . . 9 Full Trace Events . | . . . . . . Feedback Events . | . . . . . . Feedback Blocked . | . . . . . . Robot Schematics Acquired . | . . . . . . Robots Built . | . . . . . . Authchips . | . . . . . . Time . | . . . . . . Total Robot Build Rating . | . . . . . . Part Schematics Acquired 6 | . . . . . 6 Parts Built . | . . . . . . Authchips . | . . . . . . Time . | . . . . . . Total Part Build Rating . | . . . . . . Parts Repaired 2 | . . . . . 2 Time 70 | . . . . . 70 Parts Recycled 3 | . 3 . . . . Recycled Matter 8 | . 8 . . . . Retrieved Matter . | . . . . . . Retrieved Components . | . . . . . . Parts Scanalyzed 6 | . . . . . 6 Part Schematics Acquired 6 | . . . . . 6 Parts Damaged 1 | . . . . . 1 Bothacking | -11 -10 -10 -10 -9 -8 ------------ Run | Jun Mat Min Exi Min Mat Used RIF Installer . | . . . . . . Robots Hacked . | . . . . . . Non-combat . | . . . . . . Combat . | . . . . . . Robot Hacks Applied . | . . . . . . Relay Couplers Released . | . . . . . . Fabnet Peak Effective % . | . . . . . . Robots Rewired . | . . . . . . Allies Hacked . | . . . . . . Hacks Repelled . | . . . . . . Allies | -11 -10 -10 -10 -9 -8 -------- Run | Jun Mat Min Exi Min Mat Total Allies 5 | . . 3 . 2 . Largest Group 4 | . . 3 2 4 1 Highest-Rated Group 75 | . . 40 32 75 16 Highest-Rated Ally 31 | . . 16 16 31 16 Total Orders . | . . . . . . Ally Attacks 46 | . . 13 . 15 18 Total Damage 503 | . . 135 . 174 194 Kills 10 | . . 3 . 5 2 Allies Corrupted . | . . . . . . Allies Melted . | . . . . . . Intel | -11 -10 -10 -10 -9 -8 ------- Run | Jun Mat Min Exi Min Mat Robot Analysis Total 9 | . 4 . . . 5 Derelict Logs Recovered 2 | . . . . 2 . Drone Launches . | . . . . . . Drone Recoveries . | . . . . . . Exploration | -11 -10 -10 -10 -9 -8 ------------- Run | Jun Mat Min Exi Min Mat Turns Passed 7311 | 61 1510 813 964 686 3277 Spaces Moved 5051 | 43 980 617 829 573 2009 Core 9 | 9 . . . . . Treads . | . . . . . . Legs 5042 | 34 980 617 829 573 2009 Wheels . | . . . . . . Hover . | . . . . . . Flight . | . . . . . . Fastest Speed 50 | 50 120 120 90 90 90 Average Speed 103 | 110 120 120 111 90 90 Slowest Speed 120 | 120 120 120 120 90 90 Overloaded Moves . | . . . . . . Propulsion Burnouts . | . . . . . . Robots Hopped . | . . . . . . Cave-ins Triggered . | . . . . . . Exploration Rate (%) 73 | 3 91 82 92 97 78 Regions Visited 5 Branch Regions 3 Pre-discovered Areas 1 | . . . 1 . . Known Exits Taken 1 | . 1 . . . . Unknown Exits Taken 4 | 1 . 1 1 1 . Scrap Searched 4 | . . . . 4 . Spaces Dug . | . . . . . . Terrain Destroyed . | . . . . . . Melee . | . . . . . . Projectile . | . . . . . . AOE . | . . . . . . Terrain Rammed . | . . . . . . Walls Destroyed . | . . . . . . Machines Disabled . | . . . . . . Actions | -11 -10 -10 -10 -9 -8 --------- Run | Jun Mat Min Exi Min Mat Total 6930 | 55 1232 685 866 724 3368 Wait 1532 | 10 137 52 32 127 1174 Move 5046 | 42 979 616 828 572 2009 Hop . | . . . . . . Pick Up 19 | . 7 . 2 . 10 Fast Attach 18 | 3 1 2 1 2 9 Attach 5 | . 2 . 1 . 2 Detach . | . . . . . . Swap 3 | . 2 1 . . . Drop 20 | . 4 3 2 1 10 Fire 68 | . 68 . . . . Melee 141 | . 8 5 . 18 110 Ram . | . . . . . . Kick . | . . . . . . Crush . | . . . . . . Escape Stasis . | . . . . . . Rewire . | . . . . . . Trap . | . . . . . . Miscellaneous 78 | . 24 6 . 4 44 Route ------- -11/Junkyard -10/Materials (discovered 5 exits: *Mat x3 / *Min x2) -10/Mines (discovered 2 exits: *Mat / *Exi) -10/Exiles (discovered 2 exits: [*Min x2]) -9/Mines (discovered 2 exits: *Mat x2) -8/Materials (discovered 6 exits: *Fac x3 / *Sto x2 / Gar) History --------- Turn | Location | Event 16 | -11/Junkyard | Discovered new exit (range 16) 62 | -11/Junkyard | Entered Materials 203 | -10/Materials | Core integrity fell below 50% 282 | -10/Materials | Discovered new exit (range 7) 300 | -10/Materials | Build established: Hacker-Mutant 341 | -10/Materials | Discovered new exit (range 10) 454 | -10/Materials | Identified exit to Mines 454 | -10/Materials | Identified exit to Materials 1104 | -10/Materials | Central database locked down 1572 | -10/Materials | Entered Mines 1574 | -10/Mines | Reached level 2 1598 | -10/Mines | Deemed a non-threat by the Exiles lab entrance 1599 | -10/Mines | Discovered new exit (range 5) 1742 | -10/Mines | Found a damaged Exp. Sensor Array with a note attached 1747 | -10/Mines | Found Prototype Device 1747 | -10/Mines | Identified Exp. Sensor Array 1769 | -10/Mines | A weapon hastily lodged in a ceiling crevice suddenly fell to the ground 1769 | -10/Mines | Discovered exit to Materials (range 15) 1805 | -10/Mines | Assisted by bots powering up and referring to "LRC-V3" 2385 | -10/Mines | Entered Exiles 2385 | -10/Exiles | Accompanied by 2 allies 2410 | -10/Exiles | Discovered new exit (range 14) 2426 | -10/Exiles | Met 8R-AWN 2450 | -10/Exiles | Met EX-HEX 2489 | -10/Exiles | Met EX-BIN 2517 | -10/Exiles | Aligned with FarCom system 2518 | -10/Exiles | Given EX-Vault access code 2699 | -10/Exiles | Met EX-DEC 2717 | -10/Exiles | Learned location of Zion (-7) 2795 | -10/Exiles | Discovered new exit (range 14) 2884 | -10/Exiles | Visited The Gauntlet 3099 | -10/Exiles | Opened EX-Vault 3109 | -10/Exiles | Found Prototype Leg 3109 | -10/Exiles | Identified Potential Leg 3112 | -10/Exiles | Found Potential Leg 3113 | -10/Exiles | Upgraded with Propulsion slot (x1) 3143 | -10/Exiles | Warned to stay clear of 0b10 Research branches 3349 | -10/Exiles | Left Exiles lab with Potential Leg 3349 | -10/Exiles | Entered Mines 3349 | -9/Mines | Accompanied by 2 allies 3351 | -9/Mines | Reached level 3 3379 | -9/Mines | Discovered new exit (range 11) 3458 | -9/Mines | Learned Materials stockpile data 3480 | -9/Mines | Discovered new exit (range 7) 3518 | -9/Mines | Learned Materials terminal intel 3654 | -9/Mines | Reached level 4 3953 | -9/Mines | Received a Rocket Launcher from a helpful Derelict 4035 | -9/Mines | Entered Materials 4035 | -8/Materials | Accompanied by 1 ally 4037 | -8/Materials | Loaded intel: 12 terminal locations 4037 | -8/Materials | Reached level 5 4517 | -8/Materials | Core integrity fell below 50% 4563 | -8/Materials | Repaired Hrd. Light Armor Plating 4791 | -8/Materials | Identified exit to Storage 4791 | -8/Materials | Identified exit to Factory 5352 | -8/Materials | Reached level 6 5361 | -8/Materials | Upgraded with Utility slot (x2) 5988 | -8/Materials | Destroyed 7 combat bots 6251 | -8/Materials | Reached level 7 6262 | -8/Materials | Upgraded with Utility slot (x1) 6682 | -8/Materials | Core integrity fell below 20% 6784 | -8/Materials | Identified exit to Garrison 6940 | -8/Materials | Repaired Lgt. Nuclear Core 7312 | -8/Materials | Destroyed by Y-45 Defender with Heavy Assault Rifle Last Messages --------------- >>Enumerate(Surveillance) Retrieving latest reported positions... No active surveillance squads found. >>Access(Emergency) Found 1 emergency access door: (8,73) Map updated. 07122_ Dropped Lgt. Nuclear Core. 07126_ Acquired Deuterium Engine. 07138_ Triggered Explosive Trap. 07138_ An explosion rips through the floor. 07155_ The unstable cave ceiling collapses. 07237_ Destroyed Heat Sink. 07237_ Y-45 Defender system corrupted by crushing effect. 07238_ Y-45 Defender system terminally corrupted. 07238_ Heat Sink fried. 07239_ Acquired 10 matter. 07246_ R-06 Scavenger collects Corrupted Lgt. Treads. 07256_ K-01 Serf collects debris. 07278_ K-01 Serf cleans the Atomic Centrifuge. Map ----- +----------------------------------------------------+ | ????????????????????????# T # # # ######### | | ????????????????????????# " # # ! = + #???????# | | ????????????????????????# # # # #???????# | | ????????????????????????# # ######### #???????# | | ???????????????????????#######+##??????# #???????# | | ?????##########????????# #??????# #???????# | | ###### #????????# #??????# ######### | | # #????????# #??????# # ## | | # #????????# ######## # #T | | # #????????# [# [ # # ## | | # > #????????# # # # ## | | # #????????# =# + # = ## | | # #????????# ! # [! # # % ## | | # #????????# % # ! # ##+###### | | # #????????#####+#### # % | | #####+############### % ######### % | | #### [ #?# # ######### | | + #?# # #???????? | | #### """ """ """ """ #?# # #???????? | | ######??# """ """ """ """ #?# =# #???????? | | ????????# """ """ """ """ #?# !%%# #???????? | | ????????# r #?# =[ # #???##### | | ######### a #?# [= %# #???# | | ^^ a ] #######+#%##### | | ^^ %%t%%% ! | | ^^ @ ############### | | #+########+#######" "##### #?????????????# | | ?????# = #?#"R"#???##Y ##?????????????###+# | | ?????# ## """ ???# #??????????????????? | | ?????# """ """ ## ??# #??????????????????? | | ?????# """ """ ## + #??????????????????? | | ?????# """ """ ## # #??????????????????? | | ?????# ## # +??????????????????? | | ?????# ## # Y#??????????????????? | | ?????# ## ? # #??????????????????? | | ????###+########? ????# #??????????????????? | | ##### #???????????????# #??????????????????? | | #???????????????# #??????????????????? | | #???????????????? #??????????????????? | | #???????????????? #??????????????????? | | ##### #???????????????? #??????????????????? | | ????#######???????????????? ??????????????????? | | ??????????????????????????? ??????????????????? | | ??????????????????????????? ????T??????????????? | | ?????????????????????????????????????????????????? | | ?????????????????????????????????????????????????? | | ?????????????????????????????????????????????????? | | ?????????????????????????????????????????????????? | | ?????????????????????????????????????????????????? | | ??"""????????????????????????????????????????????? | +----------------------------------------------------+ Best States ------------- Heat Dissipation 35 Energy Generation 14 Energy Capacity 275 Matter Stores 300 Matter Capacity 300 Sight Range 16 Terrain Scan Density 10 Armor Coverage 150 Resistance: KI 15 Resistance: TH 10 Resistance: EX 5 Evasion (%) 57 Targeting Accuracy 5 Melee Accuracy 18 Offensive Hacking 30 Defensive Hacking 20 Item Schematics ----------------- Datajack | -8/Materials | Scanalyzed Hvy. EM Shotgun | -8/Materials | Scanalyzed Adv. Beam Rifle | -8/Materials | Scanalyzed Med. Laser | -8/Materials | Scanalyzed Imp. Medium Laser | -8/Materials | Scanalyzed Prc. Beam Rifle | -8/Materials | Scanalyzed Robot Schematics ------------------ None Fabricated ------------ Nothing Alien Tech Used ----------------- None Achievements -------------- Maximum Efficiency root@ Challenges ------------ None RPGLIKE | -11 -10 -10 -10 -9 -8 --------- Run | Jun Mat Min Exi Min Mat Levels Raised 6 | . . 1 . 2 3 XP Earned 13083 | 3000 1245 1114 350 2197 5177 XP Spent 11975 | 2700 250 800 750 2100 5375 Upgrades 24 | 6 1 1 3 2 11 Propulsion Slot 1 | . . . 1 . . Utility Slot 3 | . . . . . 3 Core Integrity 1 | . . . . . 1 Mass Support 1 | . . . 1 . . Inventory Capacity 1 | . 1 . . . . Melee Accuracy 1 | . . . . . 1 Hack Attack % 6 | 3 . 1 . 1 1 Hack Defense % 4 | 3 . . . 1 . KI Resistance % 3 | . . . 1 . 2 TH Resistance % 2 | . . . . . 2 EX Resistance % 1 | . . . . . 1 Protomatter Created 540 | . 169 . . . 371 Integrity Restored 1607 | . 507 136 . 52 912 Core 1352 | . 507 115 . 41 689 Parts 255 | . . 21 . 11 223 Protomatter Decayed 209 | . . . . 33 176 Game ------ Seed DamperOpticalMace Manual? 0 Play Time 01:25:56 Cumulative 9.8 hours Start 2023.04.25 @ 13:49:14 End 2023.04.26 @ 01:50:28 Sessions 3 Manual Loads 0 Difficulty Rogue Special Mode Winter2019/RPGLIKE Game No. 9 Rogue 9 Adventurer 0 Explorer 0 Win Type - Total 0 Types 0/0/0/0/0/0/0/0/0 Lore% 17 Gallery% 8 Achievement% 14 Wizard Run 0 Options --------- ASCII 0 Keyboard 0 Movement Mouse Keybinds 0 Fullscreen 1 Font 18/CogNarrow Map View 76x50 Tactical HUD 1 Map Filters NONE Filters NONE Steam 1 RUN: 651339f1-84cc-4e03-8c53-6c833f9db03d